fUST/lending_fUST_20250625
["ID","MTS","AMOUNT","RATE_DAILY","PERIOD"]
[367509150,1750836643798,-460.0,0.00017152,2]
[367509151,1750836643807,-460.0,0.00017154,2]
[367509152,1750836643816,-460.0,0.00017154,2]
[367509153,1750836643825,-817.47,0.00017154,2]
[367509154,1750836643835,-4684.96,0.00017154,2]
[367509155,1750836643844,-453.84000003,0.00017154,2]
[367509156,1750836643855,-460.0,0.00017154,2]
[367509157,1750836643864,-1024.43,0.00017154,2]
[367509158,1750836643873,-1041.84,0.00017154,2]
[367509159,1750836643883,-460.0,0.00017154,2]
[367509160,1750836643892,-6719.84,0.00017154,2]
[367509161,1750836643901,-5819.39,0.00017154,2]
[367509162,1750836643911,-460.0,0.00017154,2]
[367509163,1750836643920,-613.57,0.00017154,2]
[367509164,1750836643929,-460.0,0.00017154,2]
[367509165,1750836643939,-460.0,0.00017154,2]
[367509166,1750836643949,-732.06,0.00017155,2]
[367509167,1750836643958,-460.0,0.00017155,2]
[367509168,1750836643967,-487.16,0.00017155,2]
[367509169,1750836643976,-1055.59,0.00017155,2]
[367509170,1750836643985,-460.0,0.00017155,2]
[367509171,1750836643995,-460.0,0.00017155,2]
[367509172,1750836644005,-460.0,0.00017155,2]
[367509173,1750836644014,-1301.13,0.00017155,2]
[367509174,1750836644024,-460.0,0.00017155,2]
[367509175,1750836644033,-460.0,0.00017155,2]
[367509176,1750836644043,-460.0,0.00017155,2]
[367509177,1750836644051,-460.0,0.00017155,2]
[367509178,1750836644060,-1216.73,0.00017155,2]
[367509179,1750836644070,-460.0,0.00017155,2]
[367509180,1750836644084,-460.0,0.00017155,2]
[367509181,1750836644093,-270.36254585,0.00017155,2]
[367509182,1750836644103,-460.0,0.00017155,2]
[367509183,1750836644112,-460.0,0.00017155,2]
[367509184,1750836644122,-460.0,0.00017155,2]
[367509185,1750836644131,-460.0,0.00017155,2]
[367509186,1750836644141,-460.0,0.00017155,2]
[367509187,1750836644150,-10994.23808556,0.00017155,2]
[367509188,1750836644169,-5456.81108298,0.00017155,2]
[367509189,1750836644181,-4565.06083146,0.00017155,2]
[367509190,1750836644191,-460.0,0.00017155,2]
[367509191,1750836644200,-460.0,0.00017155,2]
[367509192,1750836644210,-1796.14,0.00017155,2]
[367509193,1750836644220,-460.0,0.00017155,2]
[367509194,1750836644229,-482.37,0.00017157,2]
[367509195,1750836644243,-460.0,0.00017157,2]
[367509196,1750836644258,-560.71,0.00017157,2]
[367509197,1750836644272,-460.0,0.00017157,2]
[367509198,1750836644286,-460.0,0.00017157,2]
[367509199,1750836644297,-327.18998456,0.00017157,2]
[367509200,1750836644310,-460.0,0.00017157,2]
[367509201,1750836644323,-460.0,0.00017157,2]
[367509202,1750836644336,-460.0,0.00017157,2]
[367509203,1750836644349,-460.0,0.00017157,2]
[367509204,1750836644362,-460.0,0.00017157,2]
[367509205,1750836644375,-460.0,0.00017157,2]
[367509206,1750836644388,-460.0,0.00017157,2]
[367509207,1750836644403,-460.0,0.00017157,2]
[367509208,1750836644414,-460.0,0.00017157,2]
[367509209,1750836644426,-496.17,0.00017157,2]
[367509210,1750836644439,-460.0,0.00017157,2]
[367509211,1750836644452,-252.18,0.00017157,2]
[367509212,1750836644466,-229.95,0.00017157,2]
[367509213,1750836644479,-460.0,0.00017157,2]
[367509214,1750836644491,-460.0,0.00017157,2]
[367509215,1750836644502,-460.0,0.00017157,2]
[367509216,1750836644512,-460.0,0.00017157,2]
[367509217,1750836644524,-460.0,0.00017157,2]
[367509218,1750836644536,-460.0,0.00017157,2]
[367509219,1750836644547,-532.96,0.00017157,2]
[367509220,1750836644559,-460.0,0.00017157,2]
[367509221,1750836644574,-460.0,0.00017157,2]
[367509222,1750836644588,-460.0,0.00017157,2]
[367509223,1750836644601,-460.0,0.00017157,2]
[367509224,1750836644615,-460.0,0.00017157,2]
[367509225,1750836644628,-460.0,0.00017157,2]
[367509227,1750836644639,-476.91,0.00017157,2]
[367509229,1750836644649,-50.02211757,0.00017157,2]
[367509266,1750836644987,-460.0,0.0001688,2]
[367509269,1750836644999,-460.0,0.00017154,2]
[367509271,1750836645011,-661.05788243,0.00017157,2]
[367509273,1750836645022,-251.9142423,0.00017157,2]
[367509276,1750836645035,-874.8357577,0.00017157,2]
[367509278,1750836645048,-460.0,0.00017157,2]
[367509280,1750836645059,-460.0,0.00017157,2]
[367509282,1750836645070,-460.0,0.00017157,2]
[367509284,1750836645086,-460.0,0.00017157,2]
[367509287,1750836645097,-769.07,0.00017157,2]
[367509288,1750836645109,-460.0,0.00017157,2]
[367509289,1750836645119,-460.0,0.00017157,2]
[367509290,1750836645132,-460.0,0.00017157,2]
[367509291,1750836645143,-460.0,0.00017157,2]
[367509292,1750836645155,-460.0,0.00017157,2]
[367509293,1750836645166,-460.0,0.00017157,2]
[367509294,1750836645178,-460.0,0.00017157,2]
[367509295,1750836645188,-1068.09,0.00017157,2]
[367509296,1750836645200,-677.6,0.00017157,2]
[367509297,1750836645211,-460.0,0.00017157,2]
[367509298,1750836645223,-460.0,0.00017157,2]
[367509299,1750836645234,-460.0,0.00017157,2]
[367509300,1750836645245,-460.0,0.00017157,2]
[367509302,1750836645256,-460.0,0.00017157,2]
[367509304,1750836645267,-11691.78,0.00017157,2]
[367509306,1750836645278,-1155.77,0.00017157,2]
[367509308,1750836645289,-460.0,0.00017157,2]
[367509310,1750836645301,-460.0,0.00017157,2]
[367509312,1750836645312,-460.0,0.00017157,2]
[367509315,1750836645324,-623.69,0.00017157,2]
[367509317,1750836645335,-594.24,0.00017157,2]
[367509319,1750836645346,-460.0,0.00017157,2]
[367509320,1750836645357,-460.0,0.00017157,2]
[367509321,1750836645368,-464.78014062,0.00017157,2]
[367509322,1750836645378,-540.02375141,0.00017157,2]
[367509323,1750836645389,-460.0,0.00017157,2]
[367509324,1750836645400,-460.0,0.00017157,2]
[367509325,1750836645412,-460.0,0.00017157,2]
[367509326,1750836645423,-460.0,0.00017157,2]
[367509327,1750836645434,-469.10159919,0.00017157,2]
[367509328,1750836645443,-525.38,0.00017157,2]
[367509329,1750836645452,-460.0,0.00017157,2]
[367509330,1750836645462,-460.0,0.00017157,2]
[367509331,1750836645471,-463.11066375,0.00017157,2]
[367509332,1750836645480,-460.0,0.00017157,2]
[367509333,1750836645489,-460.0,0.00017157,2]
[367509334,1750836645499,-2954.4,0.00017159,2]
[367509335,1750836645508,-460.0,0.0001716,2]
[367509336,1750836645518,-460.0,0.0001716,2]
[367509337,1750836645527,-485.60869425,0.0001716,2]
[367509338,1750836645536,-300.0,0.0001716,2]
[367509339,1750836645546,-235.31,0.0001716,2]
[367509340,1750836645555,-460.0,0.0001716,2]
[367509341,1750836645565,-460.0,0.0001716,2]
[367509342,1750836645574,-460.0,0.0001716,2]
[367509343,1750836645583,-375.13010161,0.0001716,2]
[367509344,1750836645593,-460.0,0.0001716,2]
[367509345,1750836645602,-495.59785271,0.0001716,2]
[367509346,1750836645611,-552.43,0.0001716,2]
[367509347,1750836645621,-460.0,0.0001716,2]
[367509348,1750836645630,-460.0,0.0001716,2]
[367509349,1750836645813,-213.03,0.0001716,2]
[367509350,1750836645846,-460.0,0.0001716,2]
[367509351,1750836645863,-585.68024075,0.0001716,2]
[367509352,1750836645872,-460.0,0.0001716,2]
[367509353,1750836645881,-443.23694174,0.0001716,2]
[367509354,1750836645890,-460.0,0.0001716,2]
[367509355,1750836645899,-460.0,0.0001716,2]
[367509356,1750836645909,-2954.4,0.0001716,2]
[367509357,1750836645918,-460.0,0.00017161,2]
[367509358,1750836645927,-972.16,0.00017161,2]
[367509359,1750836645937,-460.0,0.00017161,2]
[367509360,1750836645946,-500.0,0.00017161,2]
[367509361,1750836645956,-2954.4,0.00017161,2]
[367509362,1750836645968,-425.171196,0.00017162,2]
[367509363,1750836645977,-460.0,0.00017162,2]
[367509364,1750836645986,-376.73,0.00017162,2]
[367509365,1750836645996,-156.06,0.00017162,2]
[367509366,1750836646005,-421.75,0.00017162,2]
[367509367,1750836646015,-460.0,0.00017162,2]
[367509368,1750836646024,-392.73,0.00017162,2]
[367509369,1750836646033,-500.0,0.00017162,2]
[367509370,1750836646043,-2954.4,0.00017162,2]
[367509371,1750836646053,-2954.4,0.00017162,2]
[367509372,1750836646062,-602.45,0.00017163,2]
[367509373,1750836646071,-460.0,0.00017163,2]
[367509374,1750836646079,-460.0,0.00017163,2]
[367509375,1750836646088,-623.89917797,0.00017163,2]
[367509376,1750836646097,-365.33275755,0.00017165,2]
[367509377,1750836646106,-460.0,0.00017165,2]
[367509378,1750836646116,-599.04,0.00017165,2]
[367509379,1750836646125,-465.57555808,0.00017165,2]
[367509380,1750836646134,-460.0,0.00017165,2]
[367509381,1750836646144,-460.0,0.00017165,2]
[367509382,1750836646156,-460.0,0.00017165,2]
[367509383,1750836646166,-466.04061526,0.00017165,2]
[367509384,1750836646175,-465.40040219,0.00017165,2]
[367509385,1750836646185,-460.0,0.00017165,2]
[367509386,1750836646194,-460.0,0.00017165,2]
[367509387,1750836646203,-400.34292741,0.00017165,2]
[367509388,1750836646213,-460.0,0.00017165,2]
[367509389,1750836646222,-328.84471088,0.00017165,2]
[367509391,1750836646231,-460.0,0.00017165,2]
[367509393,1750836646240,-460.0,0.00017165,2]
[367509395,1750836646250,-1954.039222,0.00017266,2]
[367509397,1750836646259,-1255.84058726,0.0001728,2]
[367509424,1750836647880,-1698.55941274,0.0001728,2]
[367509425,1750836647890,-8646.84046388,0.00017281,2]
[367509426,1750836647900,-500.0,0.00017326,2]
[367509427,1750836647910,-500.0,0.00017345,2]
[367509428,1750836647920,-500.0,0.00017345,2]
[367509429,1750836647930,-500.0,0.00017355,2]
[367509430,1750836647940,-500.0,0.00017368,2]
[367509431,1750836647949,-500.98945024,0.00017368,2]
[367509432,1750836647959,-305.39710031,0.00017373,2]
[367509433,1750836647968,-1000.0,0.00017421,2]
[367509434,1750836647978,-1003.72718248,0.00017421,2]
[367509435,1750836647988,-469.20317832,0.00017426,2]
[367509436,1750836647998,-460.0,0.00017428,2]
[367509437,1750836648008,-460.0,0.00017428,2]
[367509438,1750836648018,-817.47,0.00017428,2]
[367509439,1750836648028,-4684.96,0.00017428,2]
[367509440,1750836648037,-460.0,0.00017428,2]
[367509441,1750836648049,-1024.43,0.00017428,2]
[367509442,1750836648059,-1041.84,0.00017428,2]
[367509443,1750836648070,-460.0,0.00017428,2]
[367509444,1750836648082,-6719.84,0.00017428,2]
[367509445,1750836648092,-5819.39,0.00017428,2]
[367509446,1750836648102,-460.0,0.00017428,2]
[367509447,1750836648113,-613.57,0.00017428,2]
[367509448,1750836648123,-460.0,0.00017428,2]
[367509449,1750836648133,-460.0,0.00017428,2]
[367509450,1750836648143,-487.16,0.00017429,2]
[367509451,1750836648153,-1055.59,0.00017429,2]
[367509452,1750836648163,-460.0,0.00017429,2]
[367509453,1750836648174,-460.0,0.00017429,2]
[367509454,1750836648184,-460.0,0.00017429,2]
[367509455,1750836648194,-1301.13,0.00017429,2]
[367509456,1750836648204,-460.0,0.00017429,2]
[367509457,1750836648214,-300.18,0.00017429,2]
[367509458,1750836648223,-460.0,0.00017429,2]
[367509459,1750836648233,-460.0,0.00017429,2]
[367509460,1750836648243,-1216.73,0.00017429,2]
[367509461,1750836648253,-460.0,0.00017429,2]
[367509462,1750836648263,-410.0,0.00017429,2]
[367509463,1750836648272,-592.21,0.00017429,2]
[367509464,1750836648282,-460.0,0.00017429,2]
[367509465,1750836648291,-460.0,0.00017429,2]
[367509466,1750836648302,-21016.11,0.00017429,2]
[367509467,1750836648311,-460.0,0.00017429,2]
[367509468,1750836648321,-460.0,0.00017429,2]
[367509469,1750836648330,-1796.14,0.00017429,2]
[367509470,1750836648340,-460.0,0.00017429,2]
[367509471,1750836648350,-442.33,0.00017431,2]
[367509472,1750836648359,-460.0,0.00017431,2]
[367509473,1750836648368,-469.77,0.00017431,2]
[367509474,1750836648378,-460.0,0.00017431,2]
[367509475,1750836648387,-460.0,0.00017431,2]
[367509476,1750836648397,-460.0,0.00017431,2]
[367509477,1750836648406,-460.0,0.00017431,2]
[367509478,1750836648415,-460.0,0.00017431,2]
[367509479,1750836648425,-460.0,0.00017431,2]
[367509480,1750836648435,-460.0,0.00017431,2]
[367509481,1750836648445,-460.0,0.00017431,2]
[367509482,1750836648454,-460.0,0.00017431,2]
[367509483,1750836648464,-460.0,0.00017431,2]
[367509484,1750836648473,-460.0,0.00017431,2]
[367509485,1750836648482,-605.49,0.00017431,2]
[367509486,1750836648491,-460.0,0.00017431,2]
[367509487,1750836648501,-460.0,0.00017431,2]
[367509488,1750836648510,-460.0,0.00017431,2]
[367509489,1750836648520,-460.0,0.00017431,2]
[367509490,1750836648529,-460.0,0.00017431,2]
[367509491,1750836648539,-460.0,0.00017431,2]
[367509492,1750836648549,-460.0,0.00017431,2]
[367509493,1750836648559,-476.91,0.00017431,2]
[367509494,1750836648568,-711.08,0.00017431,2]
[367509495,1750836648578,-1126.75,0.00017431,2]
[367509496,1750836648587,-460.0,0.00017431,2]
[367509497,1750836648597,-460.0,0.00017431,2]
[367509498,1750836648607,-769.07,0.00017431,2]
[367509499,1750836648616,-359.23,0.00017431,2]
[367509500,1750836648625,-460.0,0.00017431,2]
[367509501,1750836648635,-460.0,0.00017431,2]
[367509502,1750836648644,-460.0,0.00017431,2]
[367509503,1750836648654,-172.0,0.00017431,2]
[367509504,1750836648664,-1068.09,0.00017431,2]
[367509505,1750836648674,-677.6,0.00017431,2]
[367509506,1750836648685,-319.7,0.00017431,2]
[367509507,1750836648695,-460.0,0.00017431,2]
[367509508,1750836648705,-460.0,0.00017431,2]
[367509509,1750836648715,-522.87,0.00017431,2]
[367509510,1750836648724,-11691.78,0.00017431,2]
[367509511,1750836648734,-460.0,0.00017431,2]
[367509512,1750836648743,-1155.77,0.00017431,2]
[367509513,1750836648753,-460.0,0.00017431,2]
[367509514,1750836648762,-209.69,0.00017431,2]
[367509515,1750836648772,-623.69,0.00017431,2]
[367509516,1750836648782,-594.24,0.00017431,2]
[367509517,1750836648791,-460.0,0.00017431,2]
[367509518,1750836648802,-460.0,0.00017431,2]
[367509519,1750836648811,-162.53968623,0.00017431,2]
[367509520,1750836648820,-460.0,0.00017431,2]
[367509521,1750836648829,-460.0,0.00017431,2]
[367509522,1750836648839,-460.0,0.00017431,2]
[367509523,1750836648849,-460.0,0.00017431,2]
[367509524,1750836648858,-460.0,0.00017431,2]
[367509525,1750836648868,-460.0,0.00017431,2]
[367509526,1750836648878,-2954.4,0.00017433,2]
[367509527,1750836648888,-222.30494947,0.00017434,2]
[367509528,1750836648897,-343.15059945,0.00017434,2]
[367509529,1750836648907,-460.0,0.00017434,2]
[367509530,1750836648917,-460.0,0.00017434,2]
[367509531,1750836648927,-170.28667212,0.00017434,2]
[367509532,1750836648938,-460.0,0.00017434,2]
[367509533,1750836648948,-478.25,0.00017434,2]
[367509534,1750836648958,-460.0,0.00017434,2]
[367509535,1750836648968,-460.0,0.00017434,2]
[367509536,1750836648978,-460.0,0.00017434,2]
[367509537,1750836648988,-460.0,0.00017434,2]
[367509538,1750836648998,-2954.4,0.00017434,2]
[367509539,1750836649007,-460.0,0.00017435,2]
[367509540,1750836649017,-972.16,0.00017435,2]
[367509541,1750836649026,-460.0,0.00017435,2]
[367509542,1750836649036,-2954.4,0.00017435,2]
[367509543,1750836649169,-298.61267054,0.00017436,2]
[367509544,1750836649179,-262.49,0.00017436,2]
[367509545,1750836649190,-2954.4,0.00017436,2]
[367509546,1750836649200,-2708.17626945,0.00017436,2]
[367509547,1750836649485,759.91496793,0.00016009,2]
[367509548,1750836649509,1482.37145427,0.00016009,2]
[367509549,1750836649565,-393.55482928,0.00016881,2]
[367509550,1750836649577,-66.44517072,0.00016881,2]
[367509551,1750836649588,-246.22373055,0.00017436,2]
[367509552,1750836649597,-2954.4,0.00017436,2]
[367509553,1750836649608,-2954.4,0.00017436,2]
[367509554,1750836649617,-2954.62604223,0.00017436,2]
[367509556,1750836649627,-460.0,0.00017437,2]
[367509558,1750836649636,-460.0,0.00017437,2]
[367509560,1750836649646,-1567.163924,0.00017438,2]
[367509562,1750836649656,-460.0,0.00017439,2]
[367509564,1750836649666,-192.43,0.00017439,2]
[367509566,1750836649675,-460.0,0.00017439,2]
[367509568,1750836649684,-184.76156487,0.00017439,2]
[367509570,1750836649694,-460.0,0.00017439,2]
[367509572,1750836649704,-460.0,0.00017439,2]
[367509574,1750836649714,-460.0,0.00017439,2]
[367509577,1750836649724,-460.0,0.00017702,2]
[367509579,1750836649736,-817.47,0.00017702,2]
[367509581,1750836649750,-4684.96,0.00017702,2]
[367509583,1750836649759,-460.0,0.00017702,2]
[367509585,1750836649771,-1024.43,0.00017702,2]
[367509587,1750836649784,-1041.84,0.00017702,2]
[367509589,1750836649793,-195.11150249,0.00017702,2]
[367509591,1750836649804,-6163.65669461,0.00017702,2]
[367509601,1750836649972,-460.0,0.0001688,2]
[367509603,1750836649982,-466.53006277,0.00016883,2]
[367509605,1750836649992,-556.18330539,0.00017702,2]
[367509608,1750836650002,-5819.39,0.00017702,2]
[367509610,1750836650011,-294.75,0.00017702,2]
[367509612,1750836650021,-613.57,0.00017702,2]
[367509614,1750836650031,-460.0,0.00017702,2]
[367509616,1750836650040,-496.85,0.00017702,2]
[367509618,1750836650050,-151.0,0.00017702,2]
[367509620,1750836650060,-487.16,0.00017703,2]
[367509622,1750836650070,-460.0,0.00017703,2]
[367509624,1750836650083,-460.0,0.00017703,2]
[367509626,1750836650092,-460.0,0.00017703,2]
[367509628,1750836650109,-1301.13,0.00017703,2]
[367509630,1750836650122,-460.0,0.00017703,2]
[367509632,1750836650132,-460.0,0.00017703,2]
[367509634,1750836650142,-460.0,0.00017703,2]
[367509636,1750836650151,-1216.73,0.00017703,2]
[367509638,1750836650161,-460.0,0.00017703,2]
[367509640,1750836650170,-460.0,0.00017703,2]
[367509642,1750836650179,-382.03863614,0.00017703,2]
[367509644,1750836650188,-151.0,0.00017703,2]
[367509646,1750836650198,-151.0,0.00017703,2]
[367509648,1750836650207,-21016.11,0.00017703,2]
[367509650,1750836650217,-151.0,0.00017703,2]
[367509652,1750836650227,-460.0,0.00017703,2]
[367509654,1750836650237,-460.0,0.00017703,2]
[367509656,1750836650246,-151.0,0.00017703,2]
[367509658,1750836650256,-151.0,0.00017703,2]
[367509660,1750836650265,-1796.14,0.00017703,2]
[367509662,1750836650274,-460.0,0.00017703,2]
[367509664,1750836650284,-160.0,0.00017705,2]
[367509666,1750836650293,-460.0,0.00017705,2]
[367509668,1750836650306,-460.0,0.00017705,2]
[367509670,1750836650315,-460.0,0.00017705,2]
[367509672,1750836650325,-460.0,0.00017705,2]
[367509674,1750836650334,-460.0,0.00017705,2]
[367509676,1750836650344,-460.0,0.00017705,2]
[367509678,1750836650353,-489.7,0.00017705,2]
[367509680,1750836650362,-552.88361486,0.00017705,2]
[367509682,1750836650371,-460.0,0.00017705,2]
[367509684,1750836650381,-355.84,0.00017705,2]
[367509686,1750836650390,-460.0,0.00017705,2]
[367509689,1750836650400,-460.0,0.00017705,2]
[367509690,1750836650409,-460.0,0.00017705,2]
[367509693,1750836650419,-460.0,0.00017705,2]
[367509694,1750836650428,-460.0,0.00017705,2]
[367509696,1750836650437,-460.0,0.00017705,2]
[367509698,1750836650446,-460.0,0.00017705,2]
[367509700,1750836650456,-476.91,0.00017705,2]
[367509702,1750836650465,-711.08,0.00017705,2]
[367509705,1750836650474,-1126.75,0.00017705,2]
[367509707,1750836650484,-151.0,0.00017705,2]
[367509709,1750836650493,-151.0,0.00017705,2]
[367509710,1750836650502,-460.0,0.00017705,2]
[367509712,1750836650511,-151.0,0.00017705,2]
[367509715,1750836650521,-460.0,0.00017705,2]
[367509717,1750836650530,-769.07,0.00017705,2]
[367509719,1750836650539,-155.718035,0.00017705,2]
[367509721,1750836650549,-155.718035,0.00017705,2]
[367509723,1750836650559,-460.0,0.00017705,2]
[367509725,1750836650569,-460.0,0.00017705,2]
[367509727,1750836650579,-154.971557,0.00017705,2]
[367509729,1750836650589,-151.0,0.00017705,2]
[367509731,1750836650598,-1068.09,0.00017705,2]
[367509733,1750836650608,-677.6,0.00017705,2]
[367509735,1750836650617,-151.0,0.00017705,2]
[367509737,1750836650626,-151.0,0.00017705,2]
[367509739,1750836650637,-151.0,0.00017705,2]
[367509741,1750836650646,-460.0,0.00017705,2]
[367509743,1750836650656,-460.0,0.00017705,2]
[367509745,1750836650666,-11691.78,0.00017705,2]
[367509747,1750836650676,-460.0,0.00017705,2]
[367509749,1750836650686,-1155.77,0.00017705,2]
[367509751,1750836650695,-151.0,0.00017705,2]
[367509753,1750836650705,-460.0,0.00017705,2]
[367509755,1750836650715,-623.69,0.00017705,2]
[367509757,1750836650724,-594.24,0.00017705,2]
[367509759,1750836650734,-598.693518,0.00017705,2]
[367509761,1750836650743,-598.693518,0.00017705,2]
[367509763,1750836650752,-460.0,0.00017705,2]
[367509765,1750836650762,-460.0,0.00017705,2]
[367509767,1750836650771,-163.96,0.00017705,2]
[367509769,1750836650781,-460.0,0.00017705,2]
[367509771,1750836650791,-436.31,0.00017705,2]
[367509773,1750836650802,-460.0,0.00017705,2]
[367509775,1750836650811,-460.0,0.00017705,2]
[367509777,1750836650821,-475.40833549,0.00017705,2]
[367509779,1750836650830,-242.5,0.00017708,2]
[367509781,1750836650840,-460.0,0.00017708,2]
[367509783,1750836650849,-151.0,0.00017708,2]
[367509785,1750836650859,-151.0,0.00017708,2]
[367509787,1750836650868,-151.0,0.00017708,2]
[367509789,1750836650878,-151.0,0.00017708,2]
[367509791,1750836650887,-460.0,0.00017708,2]
[367509793,1750836650896,-581.55221227,0.00017708,2]
[367509795,1750836650905,-476.608385,0.00017708,2]
[367509797,1750836650915,-476.608385,0.00017708,2]
[367509799,1750836650924,-460.0,0.00017708,2]
[367509801,1750836650934,-460.0,0.00017708,2]
[367509804,1750836650945,-460.0,0.00017709,2]
[367509806,1750836650954,-972.16,0.00017709,2]
[367509808,1750836650964,-460.0,0.00017709,2]
[367509810,1750836650973,-460.0,0.00017711,2]
[367509812,1750836650983,-460.0,0.00017711,2]
[367509814,1750836650992,-151.0,0.00017711,2]
[367509816,1750836651002,-151.342855,0.00017711,2]
[367509818,1750836651011,-151.0,0.00017711,2]
[367509820,1750836651021,-151.0,0.00017711,2]
[367509822,1750836651030,-151.0,0.00017711,2]
[367509824,1750836651039,-151.0,0.00017711,2]
[367509826,1750836651049,-156.552319,0.00017711,2]
[367509828,1750836651058,-419.612191,0.00017711,2]
[367509830,1750836651068,-419.612191,0.00017711,2]
[367509832,1750836651078,-460.0,0.00017713,2]
[367509834,1750836651092,-460.0,0.00017713,2]
[367509836,1750836651101,-498.61682327,0.00017713,2]
[367509838,1750836651110,-460.0,0.00017713,2]
[367509840,1750836651120,-460.0,0.00017713,2]
[367509842,1750836651130,-1954.039222,0.00017744,2]
[367509844,1750836651139,-1000.0,0.00017874,2]
[367509846,1750836651149,-151.0,0.000179,2]
[367509848,1750836651159,-1000.0,0.00017903,2]
[367509850,1750836651168,-676.01559857,0.00017916,2]
[367509852,1750836651178,-3000.0,0.0001795,2]
[367509854,1750836651187,-1000.0,0.00017968,2]
[367509856,1750836651197,-460.0,0.00017976,2]
[367509858,1750836651206,-817.47,0.00017976,2]
[367509860,1750836651215,-4684.96,0.00017976,2]
[367509862,1750836651225,-460.0,0.00017976,2]
[367509864,1750836651234,-1024.43,0.00017976,2]
[367509866,1750836651243,-1041.84,0.00017976,2]
[367509868,1750836651252,-6719.84,0.00017976,2]
[367509870,1750836651262,-5819.39,0.00017976,2]
[367509872,1750836651272,-613.57,0.00017976,2]
[367509874,1750836651281,-460.0,0.00017976,2]
[367509876,1750836651291,-487.16,0.00017977,2]
[367509878,1750836651300,-460.0,0.00017977,2]
[367509880,1750836651309,-460.0,0.00017977,2]
[367509882,1750836651319,-460.0,0.00017977,2]
[367509884,1750836651328,-1301.13,0.00017977,2]
[367509886,1750836651338,-460.0,0.00017977,2]
[367509888,1750836651348,-460.0,0.00017977,2]
[367509890,1750836651358,-460.0,0.00017977,2]
[367509892,1750836651367,-1216.73,0.00017977,2]
[367509894,1750836651376,-159.92344049,0.00017977,2]
[367509896,1750836651385,-460.0,0.00017977,2]
[367509898,1750836651395,-21016.11,0.00017977,2]
[367509900,1750836651405,-460.0,0.00017977,2]
[367509902,1750836651414,-460.0,0.00017977,2]
[367509904,1750836651423,-1796.14,0.00017977,2]
[367509910,1750836651472,-460.0,0.00017977,2]
[367509912,1750836651481,-460.0,0.00017979,2]
[367509914,1750836651491,-151.0,0.00017979,2]
[367509916,1750836651500,-460.0,0.00017979,2]
[367509918,1750836651509,-151.0,0.00017979,2]
[367509920,1750836651518,-151.0,0.00017979,2]
[367509922,1750836651527,-367.02245973,0.00017979,2]
[367509924,1750836651537,-460.0,0.00017979,2]
[367509926,1750836651546,-460.0,0.00017979,2]
[367509928,1750836651555,-151.0,0.00017979,2]
[367509930,1750836651564,-151.0,0.00017979,2]
[367509932,1750836651573,-151.0,0.00017979,2]
[367509934,1750836651582,-151.0,0.00017979,2]
[367509935,1750836651591,-151.0,0.00017979,2]
[367509937,1750836651600,-460.0,0.00017979,2]
[367509939,1750836651610,-151.0,0.00017979,2]